[Event "*** Titled Tuesday Blitz"]
[Site "Chess.com"]
[Date "2021.02.09"]
[Round "4"]
[White "jefferyx"]
[Black "MatthewG-p4p"]
[Result "1-0"]
[WhiteElo "2998"]
[BlackElo "2818"]
[TimeControl "180+1"]
[EndTime "10:40:15 PST"]
[Termination "jefferyx won by resignation"]

1. e4 {[%clk 0:03:00.1]} 1... e6 {[%clk 0:02:59]} 2. d4 {[%clk 0:02:58.4]} 2...
d5 {[%clk 0:02:59.9]} 3. Nc3 {[%clk 0:02:58.4]} 3... Bb4 {[%clk 0:02:59.4]} 4.
Ne2 {[%clk 0:02:56]} 4... Nc6 {[%clk 0:02:59]} 5. e5 {[%clk 0:02:53.9]} 5... f6
{[%clk 0:02:39]} 6. f4 {[%clk 0:02:46]} 6... Nh6 {[%clk 0:02:30.3]} 7. a3 {[%clk
0:02:46]} 7... Ba5 {[%clk 0:02:26.7]} 8. g3 {[%clk 0:02:46.1]} 8... Nf5 {[%clk
0:02:21.2]} 9. Bh3 {[%clk 0:02:28.7]} 9... O-O {[%clk 0:02:19.7]} 10. Qd3 {[%clk
0:02:15.3]} 10... fxe5 {[%clk 0:02:04.2]} 11. dxe5 {[%clk 0:02:14.1]} 11... d4
{[%clk 0:01:55.4]} 12. Bxf5 {[%clk 0:02:07.8]} 12... exf5 {[%clk 0:01:53.5]} 13.
b4 {[%clk 0:02:07.8]} 13... dxc3 {[%clk 0:01:48]} 14. Qc4+ {[%clk 0:02:08]}
14... Kh8 {[%clk 0:01:47.2]} 15. bxa5 {[%clk 0:02:08.6]} 15... Nxa5 {[%clk
0:01:36.6]} 16. Qb5 {[%clk 0:01:35.2]} 16... c6 {[%clk 0:01:27.3]} 17. Qc5
{[%clk 0:01:32.4]} 17... b6 {[%clk 0:01:24.8]} 18. Qd4 {[%clk 0:01:23.8]} 18...
Qxd4 {[%clk 0:01:01.1]} 19. Nxd4 {[%clk 0:01:24.7]} 19... c5 {[%clk 0:01:01.8]}
20. Nb5 {[%clk 0:01:24.8]} 20... Bb7 {[%clk 0:01:01.4]} 21. O-O {[%clk
0:01:24.7]} 21... Be4 {[%clk 0:00:58.3]} 22. Rf2 {[%clk 0:01:22.1]} 22... Nc4
{[%clk 0:00:45.2]} 23. Nxc3 {[%clk 0:01:22]} 23... Bc6 {[%clk 0:00:45.7]} 24.
Re2 {[%clk 0:01:17.6]} 24... Rad8 {[%clk 0:00:43.9]} 25. Be3 {[%clk 0:01:11.5]}
25... Bf3 {[%clk 0:00:28.6]} 26. Ree1 {[%clk 0:01:09.6]} 26... Rfe8 {[%clk
0:00:29]} 27. a4 {[%clk 0:01:06.4]} 27... Re7 {[%clk 0:00:26.9]} 28. a5 {[%clk
0:01:05]} 28... h6 {[%clk 0:00:23.4]} 29. axb6 {[%clk 0:01:04.4]} 29... axb6
{[%clk 0:00:20.3]} 30. Ra4 {[%clk 0:01:00.8]} 30... Nd2 {[%clk 0:00:20.6]} 31.
Kf2 {[%clk 0:00:47.1]} 31... Ne4+ {[%clk 0:00:14.6]} 32. Kxf3 {[%clk 0:00:35.6]}
32... Nxc3 {[%clk 0:00:15.5]} 33. Ra6 {[%clk 0:00:36.1]} 33... Re6 {[%clk
0:00:13.6]} 34. Bxc5 {[%clk 0:00:35.4]} 34... Rb8 {[%clk 0:00:08.3]} 35. Bd6
{[%clk 0:00:20.6]} 35... Rc8 {[%clk 0:00:06.5]} 36. Rxb6 {[%clk 0:00:19.8]}
36... Ne4 {[%clk 0:00:06.9]} 37. Rb8 {[%clk 0:00:14.3]} 37... Rxb8 {[%clk
0:00:04.2]} 38. Bxb8 {[%clk 0:00:15.2]} 38... Rc6 {[%clk 0:00:05.1]} 39. Re2
{[%clk 0:00:11.5]} 39... Kg8 {[%clk 0:00:05.7]} 40. g4 {[%clk 0:00:09.9]} 40...
g6 {[%clk 0:00:05.4]} 41. gxf5 {[%clk 0:00:09.1]} 41... gxf5 {[%clk 0:00:06.3]}
42. Ke3 {[%clk 0:00:09.8]} 42... Kf7 {[%clk 0:00:05.8]} 43. Kd4 {[%clk
0:00:09.3]} 43... Rc8 {[%clk 0:00:04.4]} 44. Bd6 {[%clk 0:00:09]} 44... Ke6
{[%clk 0:00:04.6]} 45. c4 {[%clk 0:00:09.5]} 45... Ra8 {[%clk 0:00:04.1]} 46.
Rg2 {[%clk 0:00:09.6]} 46... Ra1 {[%clk 0:00:04.5]} 47. Rg6+ {[%clk 0:00:09.7]}
47... Kf7 {[%clk 0:00:05.2]} 48. Rxh6 {[%clk 0:00:10.6]} 48... Rd1+ {[%clk
0:00:05.5]} 49. Ke3 {[%clk 0:00:11.3]} 49... Re1+ {[%clk 0:00:05.3]} 50. Kd3
{[%clk 0:00:11.7]} 50... Rd1+ {[%clk 0:00:05.9]} 51. Kc2 {[%clk 0:00:12.3]}
51... Rd2+ {[%clk 0:00:06.6]} 52. Kb3 {[%clk 0:00:12.7]} 52... Rf2 {[%clk
0:00:07.1]} 53. e6+ {[%clk 0:00:13]} 53... Kg7 {[%clk 0:00:07.1]} 54. e7 {[%clk
0:00:13.6]} 54... Rf3+ {[%clk 0:00:05]} 55. Kb4 {[%clk 0:00:13.5]} 55... Nxd6
{[%clk 0:00:05.8]} 56. Rxd6 {[%clk 0:00:14]} 56... Re3 {[%clk 0:00:06.7]} 57. c5
{[%clk 0:00:14.3]} 57... Rxe7 {[%clk 0:00:06.2]} 58. c6 {[%clk 0:00:14.9]} 58...
Re4+ {[%clk 0:00:06.7]} 59. Kc5 {[%clk 0:00:15.4]} 59... Re1 {[%clk 0:00:07.2]}
60. c7 {[%clk 0:00:14]} 60... Rc1+ {[%clk 0:00:07]} 61. Kb6 {[%clk 0:00:14.6]}
61... Kf7 {[%clk 0:00:07.6]} 62. Rc6 {[%clk 0:00:14.8]} 1-0

[Event "*** Titled Tuesday Blitz"]
[Site "Chess.com"]
[Date "2021.02.09"]
[Round "4"]
[White "Aslanov_Umid"]
[Black "Iskusnyh"]
[Result "0-1"]
[WhiteElo "2350"]
[BlackElo "2589"]
[TimeControl "180+1"]
[EndTime "10:40:16 PST"]
[Termination "Iskusnyh won by checkmate"]

1. e4 {[%clk 0:03:00.9]} 1... e6 {[%clk 0:02:59.6]} 2. d4 {[%clk 0:02:56]} 2...
d5 {[%clk 0:03:00.1]} 3. Nc3 {[%clk 0:02:56.7]} 3... Nf6 {[%clk 0:02:59.2]} 4.
Bg5 {[%clk 0:02:55]} 4... dxe4 {[%clk 0:02:58.2]} 5. Nxe4 {[%clk 0:02:52.9]}
5... Nbd7 {[%clk 0:02:58.6]} 6. Nf3 {[%clk 0:02:52.4]} 6... h6 {[%clk
0:02:59.1]} 7. Bxf6 {[%clk 0:02:51.7]} 7... Nxf6 {[%clk 0:02:59.6]} 8. Bd3
{[%clk 0:02:51.9]} 8... Bd7 {[%clk 0:02:30.8]} 9. Ne5 {[%clk 0:02:48.9]} 9...
Bd6 {[%clk 0:02:28]} 10. Nxf6+ {[%clk 0:02:38.1]} 10... Qxf6 {[%clk 0:02:26.7]}
11. Nxd7 {[%clk 0:02:38.6]} 11... Kxd7 {[%clk 0:02:26.8]} 12. Qe2 {[%clk
0:02:33.6]} 12... Qxd4 {[%clk 0:02:19.7]} 13. O-O {[%clk 0:02:26.8]} 13... Qe5
{[%clk 0:02:13.5]} 14. Qxe5 {[%clk 0:02:16.2]} 14... Bxe5 {[%clk 0:02:12.7]} 15.
Rfe1 {[%clk 0:02:16.4]} 15... Bxb2 {[%clk 0:02:04.1]} 16. Rab1 {[%clk
0:02:13.1]} 16... Bc3 {[%clk 0:01:57.8]} 17. Re3 {[%clk 0:02:13.1]} 17... Bd4
{[%clk 0:01:57.3]} 18. Rf3 {[%clk 0:02:08.1]} 18... Ke7 {[%clk 0:01:55]} 19.
Rxb7 {[%clk 0:01:39.8]} 19... Bb6 {[%clk 0:01:22.4]} 20. c4 {[%clk 0:01:39.5]}
20... Rab8 {[%clk 0:01:18.4]} 21. Rxb8 {[%clk 0:01:36.2]} 21... Rxb8 {[%clk
0:01:19.3]} 22. Bc2 {[%clk 0:01:34.4]} 22... f5 {[%clk 0:01:14.4]} 23. Rb3
{[%clk 0:01:26.9]} 23... Rd8 {[%clk 0:01:11.5]} 24. Rd3 {[%clk 0:01:14.7]} 24...
Bd4 {[%clk 0:01:03.5]} 25. Kf1 {[%clk 0:01:14.1]} 25... Kf6 {[%clk 0:01:01.8]}
26. Ke2 {[%clk 0:01:09.7]} 26... e5 {[%clk 0:01:00.4]} 27. f3 {[%clk 0:01:09.9]}
27... g5 {[%clk 0:00:55.2]} 28. Rb3 {[%clk 0:01:06]} 28... Bb6 {[%clk
0:00:52.7]} 29. Rd3 {[%clk 0:00:57.5]} 29... Bd4 {[%clk 0:00:52.6]} 30. Rb3
{[%clk 0:00:56.6]} 30... h5 {[%clk 0:00:50]} 31. Rb5 {[%clk 0:00:48.5]} 31... g4
{[%clk 0:00:47.3]} 32. Rd5 {[%clk 0:00:41.2]} 32... Rb8 {[%clk 0:00:43.3]} 33.
Bb3 {[%clk 0:00:35.6]} 33... gxf3+ {[%clk 0:00:37.2]} 34. gxf3 {[%clk
0:00:36.5]} 34... Rg8 {[%clk 0:00:36.5]} 35. Kd3 {[%clk 0:00:31.1]} 35... Rg2
{[%clk 0:00:35.3]} 36. h4 {[%clk 0:00:31.8]} 36... Rf2 {[%clk 0:00:32.6]} 37.
Bd1 {[%clk 0:00:21.2]} 37... Rxa2 {[%clk 0:00:28.9]} 38. Rd7 {[%clk 0:00:18]}
38... c5 {[%clk 0:00:24.6]} 39. Rd6+ {[%clk 0:00:14.6]} 39... Ke7 {[%clk
0:00:23.5]} 40. Rh6 {[%clk 0:00:15.2]} 40... Ra3+ {[%clk 0:00:23.1]} 41. Ke2
{[%clk 0:00:12.6]} 41... e4 {[%clk 0:00:20.3]} 42. fxe4 {[%clk 0:00:13.5]} 42...
fxe4 {[%clk 0:00:20.2]} 43. Rxh5 {[%clk 0:00:07.5]} 43... Ra2+ {[%clk
0:00:20.3]} 44. Kf1 {[%clk 0:00:06]} 44... a5 {[%clk 0:00:19.5]} 45. Rh7+ {[%clk
0:00:02.3]} 45... Kf6 {[%clk 0:00:18.5]} 46. Rh5 {[%clk 0:00:02.8]} 46... a4
{[%clk 0:00:17.4]} 47. Bg4 {[%clk 0:00:03.3]} 47... Rf2+ {[%clk 0:00:15.6]} 48.
Ke1 {[%clk 0:00:03.2]} 48... a3 {[%clk 0:00:15.9]} 49. Rh6+ {[%clk 0:00:02.4]}
49... Ke5 {[%clk 0:00:15.4]} 50. Ra6 {[%clk 0:00:02.5]} 50... a2 {[%clk
0:00:15.1]} 51. h5 {[%clk 0:00:03.2]} 51... e3 {[%clk 0:00:14]} 52. h6 {[%clk
0:00:01.9]} 52... Bc3+ {[%clk 0:00:12.9]} 53. Kd1 {[%clk 0:00:02.4]} 53... Rd2+
{[%clk 0:00:12.7]} 54. Kc1 {[%clk 0:00:02.3]} 54... Bb2# {[%clk 0:00:11.9]} 0-1

[Event "*** Titled Tuesday Blitz"]
[Site "Chess.com"]
[Date "2021.02.09"]
[Round "4"]
[White "hansen"]
[Black "Gabrielian_Artur"]
[Result "1/2-1/2"]
[WhiteElo "2952"]
[BlackElo "2800"]
[TimeControl "180+1"]
[EndTime "10:40:18 PST"]
[Termination "Game drawn - insufficient material"]

1. e4 {[%clk 0:03:00.9]} 1... e5 {[%clk 0:02:59.5]} 2. Nf3 {[%clk 0:03:00.5]}
2... Nc6 {[%clk 0:02:59.3]} 3. Bb5 {[%clk 0:02:58.2]} 3... g6 {[%clk 0:02:58.8]}
4. d4 {[%clk 0:02:52.2]} 4... exd4 {[%clk 0:02:58.5]} 5. Bg5 {[%clk 0:02:52.7]}
5... Be7 {[%clk 0:02:58.6]} 6. Bxe7 {[%clk 0:02:53.1]} 6... Qxe7 {[%clk
0:02:58.6]} 7. Bxc6 {[%clk 0:02:52.3]} 7... dxc6 {[%clk 0:02:58.9]} 8. Qxd4
{[%clk 0:02:52.9]} 8... Nf6 {[%clk 0:02:59.2]} 9. Nc3 {[%clk 0:02:53.5]} 9...
Bg4 {[%clk 0:02:59.3]} 10. Nd2 {[%clk 0:02:53.9]} 10... c5 {[%clk 0:02:58.3]}
11. Qe3 {[%clk 0:02:54]} 11... O-O-O {[%clk 0:02:57.7]} 12. h3 {[%clk
0:02:44.9]} 12... Be6 {[%clk 0:02:57]} 13. O-O-O {[%clk 0:02:45.5]} 13... b6
{[%clk 0:02:48.6]} 14. f4 {[%clk 0:02:24.9]} 14... Rhe8 {[%clk 0:02:44.9]} 15.
Nf3 {[%clk 0:02:22.9]} 15... Rxd1+ {[%clk 0:02:37.6]} 16. Rxd1 {[%clk
0:02:22.7]} 16... Rd8 {[%clk 0:02:37.9]} 17. Re1 {[%clk 0:02:18]} 17... Kb7
{[%clk 0:02:08.7]} 18. g4 {[%clk 0:02:10.3]} 18... Bc8 {[%clk 0:01:50.5]} 19. f5
{[%clk 0:01:28.2]} 19... h5 {[%clk 0:01:22.7]} 20. e5 {[%clk 0:01:11]} 20...
hxg4 {[%clk 0:01:14.3]} 21. hxg4 {[%clk 0:01:10]} 21... Nd5 {[%clk 0:01:12]} 22.
Nxd5 {[%clk 0:00:57]} 22... Rxd5 {[%clk 0:01:12.9]} 23. Qe4 {[%clk 0:00:57.4]}
23... c6 {[%clk 0:01:11.9]} 24. fxg6 {[%clk 0:00:57.6]} 24... fxg6 {[%clk
0:01:08.4]} 25. Qxg6 {[%clk 0:00:57.7]} 25... c4 {[%clk 0:00:43.4]} 26. Qf6
{[%clk 0:00:41.3]} 26... Qb4 {[%clk 0:00:34.3]} 27. e6 {[%clk 0:00:37.8]} 27...
c3 {[%clk 0:00:26.9]} 28. Qxc3 {[%clk 0:00:35.8]} 28... Qf4+ {[%clk 0:00:26.6]}
29. Kb1 {[%clk 0:00:33.3]} 29... Bxe6 {[%clk 0:00:23.5]} 30. Ne5 {[%clk
0:00:21.7]} 30... c5 {[%clk 0:00:15.7]} 31. b3 {[%clk 0:00:12.8]} 31... Bxg4
{[%clk 0:00:12.1]} 32. Nd3 {[%clk 0:00:10.2]} 32... Qd6 {[%clk 0:00:10.8]} 33.
Ne5 {[%clk 0:00:08.1]} 33... Bf5 {[%clk 0:00:10.4]} 34. Kb2 {[%clk 0:00:08.5]}
34... a5 {[%clk 0:00:07.6]} 35. Nc4 {[%clk 0:00:08.5]} 35... Qd8 {[%clk
0:00:03]} 36. Qg7+ {[%clk 0:00:06.7]} 36... Ka6 {[%clk 0:00:03.5]} 37. Re7
{[%clk 0:00:05.8]} 37... Rd7 {[%clk 0:00:02.6]} 38. Rxd7 {[%clk 0:00:01.9]}
38... Qxd7 {[%clk 0:00:03.1]} 39. Qf6 {[%clk 0:00:01.8]} 39... Qd4+ {[%clk
0:00:03.4]} 40. Qxd4 {[%clk 0:00:02.2]} 40... cxd4 {[%clk 0:00:04.3]} 41. Ne5
{[%clk 0:00:02.8]} 41... Be4 {[%clk 0:00:04.2]} 42. a4 {[%clk 0:00:02.5]} 42...
b5 {[%clk 0:00:04.1]} 43. Nd7 {[%clk 0:00:02.3]} 43... bxa4 {[%clk 0:00:04.2]}
44. Nc5+ {[%clk 0:00:02.7]} 44... Kb5 {[%clk 0:00:04.5]} 45. Nxe4 {[%clk
0:00:03.2]} 45... axb3 {[%clk 0:00:04.3]} 46. Kxb3 {[%clk 0:00:03.6]} 46... a4+
{[%clk 0:00:04.4]} 47. Kb2 {[%clk 0:00:04.2]} 47... Kc4 {[%clk 0:00:04.7]} 48.
Nd2+ {[%clk 0:00:04.3]} 48... Kb4 {[%clk 0:00:05]} 49. Nb1 {[%clk 0:00:04.7]}
49... Kc4 {[%clk 0:00:04.2]} 50. Nd2+ {[%clk 0:00:01.3]} 50... Kb4 {[%clk
0:00:04.6]} 51. Nf3 {[%clk 0:00:01.8]} 51... Kc4 {[%clk 0:00:05]} 52. Ne5+
{[%clk 0:00:02.2]} 52... Kb4 {[%clk 0:00:05.5]} 53. Nd3+ {[%clk 0:00:02.2]}
53... Kc4 {[%clk 0:00:06]} 54. Nc1 {[%clk 0:00:01.9]} 54... Kb4 {[%clk
0:00:06.5]} 55. Ne2 {[%clk 0:00:02.3]} 55... Kc4 {[%clk 0:00:06.8]} 56. Ka3
{[%clk 0:00:02.8]} 56... d3 {[%clk 0:00:07.1]} 57. cxd3+ {[%clk 0:00:03.5]}
57... Kxd3 {[%clk 0:00:07.6]} 58. Kxa4 {[%clk 0:00:04.4]} 1/2-1/2

[Event "*** Titled Tuesday Blitz"]
[Site "Chess.com"]
[Date "2021.02.09"]
[Round "4"]
[White "semchik73"]
[Black "Astaneh"]
[Result "0-1"]
[WhiteElo "2342"]
[BlackElo "2644"]
[TimeControl "180+1"]
[EndTime "10:40:19 PST"]
[Termination "Astaneh won by checkmate"]

1. Nf3 {[%clk 0:03:00.2]} 1... Nf6 {[%clk 0:02:58.3]} 2. c4 {[%clk 0:03:00.2]}
2... g6 {[%clk 0:02:58.1]} 3. Nc3 {[%clk 0:03:00.4]} 3... d5 {[%clk 0:02:58]} 4.
d4 {[%clk 0:02:58.3]} 4... Bg7 {[%clk 0:02:57.6]} 5. Qb3 {[%clk 0:02:59]} 5...
dxc4 {[%clk 0:02:57]} 6. Qxc4 {[%clk 0:02:59]} 6... O-O {[%clk 0:02:57.5]} 7. e4
{[%clk 0:02:59.6]} 7... Na6 {[%clk 0:02:55.2]} 8. Be2 {[%clk 0:02:59.3]} 8... c5
{[%clk 0:02:55.1]} 9. d5 {[%clk 0:02:59.4]} 9... e6 {[%clk 0:02:55.1]} 10. O-O
{[%clk 0:02:55.8]} 10... exd5 {[%clk 0:02:54.9]} 11. exd5 {[%clk 0:02:56]} 11...
Re8 {[%clk 0:02:49.2]} 12. Bg5 {[%clk 0:02:50.5]} 12... h6 {[%clk 0:02:47.5]}
13. Bh4 {[%clk 0:02:49.3]} 13... Bf5 {[%clk 0:02:46.3]} 14. Rfe1 {[%clk
0:02:43.9]} 14... Qb6 {[%clk 0:02:45.4]} 15. Na4 {[%clk 0:02:38.2]} 15... Qa5
{[%clk 0:02:44.6]} 16. Rac1 {[%clk 0:02:16.3]} 16... Re4 {[%clk 0:02:42.2]} 17.
Qc3 {[%clk 0:02:12.5]} 17... Rxa4 {[%clk 0:01:36.3]} 18. Bxf6 {[%clk 0:02:10.2]}
18... Qxc3 {[%clk 0:01:36.3]} 19. Bxc3 {[%clk 0:02:07.6]} 19... Rxa2 {[%clk
0:01:30.4]} 20. Bxg7 {[%clk 0:02:03.3]} 20... Kxg7 {[%clk 0:01:29.5]} 21. Bxa6
{[%clk 0:02:02.8]} 21... bxa6 {[%clk 0:01:25.9]} 22. Rxc5 {[%clk 0:02:01.8]}
22... Rxb2 {[%clk 0:01:26.2]} 23. Rc7 {[%clk 0:01:59.9]} 23... a5 {[%clk
0:01:10.6]} 24. Ne5 {[%clk 0:01:59.5]} 24... Re8 {[%clk 0:00:58.5]} 25. h3
{[%clk 0:01:47.3]} 25... Kg8 {[%clk 0:00:49.9]} 26. d6 {[%clk 0:01:16.2]} 26...
f6 {[%clk 0:00:35.5]} 27. d7 {[%clk 0:01:06.4]} 27... Bxd7 {[%clk 0:00:34.8]}
28. Rxd7 {[%clk 0:00:58.5]} 28... Rxe5 {[%clk 0:00:34.4]} 29. Rxe5 {[%clk
0:00:58.5]} 29... fxe5 {[%clk 0:00:34.1]} 30. Rxa7 {[%clk 0:00:59.2]} 30... Ra2
{[%clk 0:00:20.9]} 31. Re7 {[%clk 0:00:58.9]} 31... Re2 {[%clk 0:00:16.8]} 32.
Kf1 {[%clk 0:00:58.4]} 32... Re4 {[%clk 0:00:16.2]} 33. f3 {[%clk 0:00:58.7]}
33... Ra4 {[%clk 0:00:13.8]} 34. Rxe5 {[%clk 0:00:59.3]} 34... Ra2 {[%clk
0:00:14.4]} 35. Re7 {[%clk 0:00:58]} 35... Kf8 {[%clk 0:00:14.2]} 36. Ra7 {[%clk
0:00:57.9]} 36... h5 {[%clk 0:00:14.5]} 37. g4 {[%clk 0:00:54]} 37... h4 {[%clk
0:00:12.6]} 38. f4 {[%clk 0:00:51.1]} 38... a4 {[%clk 0:00:12.6]} 39. Ra6 {[%clk
0:00:44.1]} 39... Kg7 {[%clk 0:00:09.3]} 40. Ra7+ {[%clk 0:00:43.7]} 40... Kf6
{[%clk 0:00:09.2]} 41. Ra6+ {[%clk 0:00:43]} 41... Kf7 {[%clk 0:00:09.8]} 42. g5
{[%clk 0:00:40.9]} 42... a3 {[%clk 0:00:08.4]} 43. Rf6+ {[%clk 0:00:40.9]} 43...
Kg7 {[%clk 0:00:08.6]} 44. Ra6 {[%clk 0:00:41.6]} 44... Ra1+ {[%clk 0:00:08.5]}
45. Kg2 {[%clk 0:00:40]} 45... a2 {[%clk 0:00:09.1]} 46. Ra7+ {[%clk 0:00:39]}
46... Kf8 {[%clk 0:00:09]} 47. Ra4 {[%clk 0:00:33.9]} 47... Ke7 {[%clk
0:00:09.1]} 48. Ra6 {[%clk 0:00:30.4]} 48... Kd7 {[%clk 0:00:08.8]} 49. Kf2
{[%clk 0:00:26.1]} 49... Rh1 {[%clk 0:00:05.4]} 50. Rxa2 {[%clk 0:00:24.4]}
50... Rh2+ {[%clk 0:00:04.4]} 51. Kf3 {[%clk 0:00:25]} 51... Rxa2 {[%clk
0:00:05.1]} 52. Kg4 {[%clk 0:00:25.6]} 52... Rg2+ {[%clk 0:00:05.6]} 53. Kxh4
{[%clk 0:00:26.2]} 53... Rg1 {[%clk 0:00:06.2]} 54. f5 {[%clk 0:00:25.6]} 54...
gxf5 {[%clk 0:00:07.1]} 55. Kh5 {[%clk 0:00:25.5]} 55... Ke6 {[%clk 0:00:08]}
56. g6 {[%clk 0:00:25.7]} 56... Kf6 {[%clk 0:00:08.9]} 57. Kh6 {[%clk
0:00:25.7]} 57... Rxg6+ {[%clk 0:00:09.2]} 58. Kh5 {[%clk 0:00:26.4]} 58... f4
{[%clk 0:00:09.6]} 59. Kh4 {[%clk 0:00:27]} 59... Rg8 {[%clk 0:00:10]} 60. Kh5
{[%clk 0:00:27.5]} 60... f3 {[%clk 0:00:10.9]} 61. Kh4 {[%clk 0:00:27.6]} 61...
f2 {[%clk 0:00:11.8]} 62. Kh5 {[%clk 0:00:28.3]} 62... f1=Q {[%clk 0:00:10.9]}
63. Kh4 {[%clk 0:00:28.9]} 63... Qf2+ {[%clk 0:00:10.5]} 64. Kh5 {[%clk
0:00:28.9]} 64... Qf3+ {[%clk 0:00:10.9]} 65. Kh4 {[%clk 0:00:29.1]} 65... Qg3+
{[%clk 0:00:11.2]} 66. Kh5 {[%clk 0:00:29.2]} 66... Qg5# {[%clk 0:00:12.1]} 0-1

[Event "*** Titled Tuesday Blitz"]
[Site "Chess.com"]
[Date "2021.02.09"]
[Round "4"]
[White "xberli"]
[Black "floplover"]
[Result "0-1"]
[WhiteElo "2452"]
[BlackElo "2299"]
[TimeControl "180+1"]
[EndTime "10:40:19 PST"]
[Termination "floplover won by resignation"]

1. Nf3 {[%clk 0:03:00.9]} 1... d5 {[%clk 0:02:59.8]} 2. g3 {[%clk 0:03:00.8]}
2... e6 {[%clk 0:02:59.7]} 3. Bg2 {[%clk 0:03:01.3]} 3... Nf6 {[%clk 0:03:00.6]}
4. O-O {[%clk 0:03:01.8]} 4... Be7 {[%clk 0:03:01.2]} 5. c4 {[%clk 0:03:01.8]}
5... O-O {[%clk 0:03:01.8]} 6. d4 {[%clk 0:03:00.7]} 6... dxc4 {[%clk
0:03:01.8]} 7. Qc2 {[%clk 0:02:59.4]} 7... a6 {[%clk 0:03:01.4]} 8. a4 {[%clk
0:02:59.5]} 8... Bd7 {[%clk 0:03:01.2]} 9. Qxc4 {[%clk 0:02:59.5]} 9... Bc6
{[%clk 0:03:01.8]} 10. Qc2 {[%clk 0:02:59.1]} 10... Be4 {[%clk 0:02:29.3]} 11.
Qb3 {[%clk 0:02:58.3]} 11... Nc6 {[%clk 0:02:18.3]} 12. Rd1 {[%clk 0:02:57.4]}
12... Nb4 {[%clk 0:02:05.7]} 13. Na3 {[%clk 0:02:54.3]} 13... Bd5 {[%clk
0:01:50.7]} 14. Qc3 {[%clk 0:02:50.5]} 14... Ne4 {[%clk 0:01:48.7]} 15. Qe3
{[%clk 0:02:34.9]} 15... Qe8 {[%clk 0:01:33.8]} 16. b3 {[%clk 0:02:15.7]} 16...
c5 {[%clk 0:01:08.9]} 17. Bb2 {[%clk 0:02:13.1]} 17... Rc8 {[%clk 0:01:05]} 18.
Ne5 {[%clk 0:01:55.3]} 18... Nf6 {[%clk 0:00:52.4]} 19. Nac4 {[%clk 0:01:49.4]}
19... Bxg2 {[%clk 0:00:51.3]} 20. Kxg2 {[%clk 0:01:50.3]} 20... Nfd5 {[%clk
0:00:50.8]} 21. Qf3 {[%clk 0:01:48.7]} 21... cxd4 {[%clk 0:00:50.1]} 22. Bxd4
{[%clk 0:01:47]} 22... Nc2 {[%clk 0:00:49.3]} 23. Bb2 {[%clk 0:01:41.6]} 23...
Nxa1 {[%clk 0:00:47.1]} 24. Bxa1 {[%clk 0:01:39.8]} 24... f6 {[%clk 0:00:46.4]}
25. Nd3 {[%clk 0:01:36.4]} 25... Qc6 {[%clk 0:00:44.9]} 26. e4 {[%clk
0:01:34.3]} 26... Nb4 {[%clk 0:00:43.6]} 27. Nf4 {[%clk 0:01:26.2]} 27... b5
{[%clk 0:00:27.7]} 28. axb5 {[%clk 0:01:23.3]} 28... axb5 {[%clk 0:00:27.6]} 29.
Ne3 {[%clk 0:01:22.2]} 29... Rfd8 {[%clk 0:00:24.5]} 30. Rxd8+ {[%clk
0:01:05.1]} 30... Rxd8 {[%clk 0:00:25.4]} 31. Nh5 {[%clk 0:00:59.5]} 31... Ra8
{[%clk 0:00:23.5]} 32. Qg4 {[%clk 0:00:53.9]} 32... Bf8 {[%clk 0:00:15.3]} 33.
Bxf6 {[%clk 0:00:53.1]} 33... Nd3 {[%clk 0:00:09.7]} 34. Bxg7 {[%clk 0:00:43.7]}
34... Kf7 {[%clk 0:00:08.7]} 35. Bd4 {[%clk 0:00:29.7]} 35... Ke8 {[%clk
0:00:06.6]} 36. Nf6+ {[%clk 0:00:27.2]} 36... Kd8 {[%clk 0:00:06.5]} 37. Qd1
{[%clk 0:00:24]} 37... Nb4 {[%clk 0:00:05.3]} 38. Neg4 {[%clk 0:00:18.3]} 38...
Kc7 {[%clk 0:00:05]} 39. Be5+ {[%clk 0:00:17.6]} 39... Kb7 {[%clk 0:00:05]} 40.
Qd2 {[%clk 0:00:15.2]} 40... Ra2 {[%clk 0:00:04.4]} 41. Qf4 {[%clk 0:00:14.4]}
41... Bc5 {[%clk 0:00:04.3]} 42. Nxh7 {[%clk 0:00:13.7]} 42... Nd3 {[%clk
0:00:04.3]} 43. Qf7+ {[%clk 0:00:13]} 43... Ka6 {[%clk 0:00:04.9]} 44. Bf4
{[%clk 0:00:12.2]} 44... Nxf2 {[%clk 0:00:03.8]} 45. Nxf2 {[%clk 0:00:12.2]}
45... Rxf2+ {[%clk 0:00:04.7]} 46. Kh3 {[%clk 0:00:12.4]} 46... e5 {[%clk
0:00:05.2]} 47. Bg5 {[%clk 0:00:11.2]} 47... Rxf7 {[%clk 0:00:04.7]} 48. Nf6
{[%clk 0:00:10.2]} 48... Rxf6 {[%clk 0:00:05]} 49. Bxf6 {[%clk 0:00:11.1]} 49...
Qe6+ {[%clk 0:00:05.6]} 50. Kg2 {[%clk 0:00:11.4]} 50... Qxf6 {[%clk 0:00:06.5]}
51. h4 {[%clk 0:00:11.7]} 51... Qf2+ {[%clk 0:00:07.2]} 52. Kh3 {[%clk
0:00:12.2]} 52... Qe2 {[%clk 0:00:08.1]} 53. g4 {[%clk 0:00:08.8]} 53... Qxe4
{[%clk 0:00:09]} 0-1